[Event "Late-Titled-Tuesday-Blitz-April-16-2024"]
[Site "Chess.com"]
[Date "2024.04.16"]
[Round "11"]
[White "Chempiblinka"]
[Black "giomar27"]
[Result "0-1"]
[WhiteElo "2382"]
[BlackElo "2492"]
[TimeControl "180+1"]
[EndTime "16:03:00 PDT"]
[Termination "giomar27 won by resignation"]

1. d4 {[%clk 0:02:59.8]} 1... f6 {[%clk 0:02:59.9]} 2. c4 {[%clk 0:02:54.4]}
2... g6 {[%clk 0:03:00.4]} 3. Nc3 {[%clk 0:02:51]} 3... Nh6 {[%clk 0:03:01]} 4.
g3 {[%clk 0:02:51.1]} 4... Nf7 {[%clk 0:03:01.6]} 5. Bg2 {[%clk 0:02:51.8]} 5...
Bg7 {[%clk 0:03:02.2]} 6. e4 {[%clk 0:02:52.2]} 6... O-O {[%clk 0:03:02.7]} 7.
Nf3 {[%clk 0:02:52.7]} 7... d6 {[%clk 0:03:03.3]} 8. O-O {[%clk 0:02:52.9]} 8...
e5 {[%clk 0:03:03.9]} 9. h3 {[%clk 0:02:51]} 9... Nc6 {[%clk 0:03:04.1]} 10. Be3
{[%clk 0:02:51.1]} 10... f5 {[%clk 0:03:03.7]} 11. exf5 {[%clk 0:02:42.3]} 11...
Bxf5 {[%clk 0:03:03.4]} 12. d5 {[%clk 0:02:39.7]} 12... Ne7 {[%clk 0:03:02.6]}
13. Qd2 {[%clk 0:02:32.6]} 13... h6 {[%clk 0:02:59.3]} 14. g4 {[%clk 0:02:25.7]}
14... Bd7 {[%clk 0:02:59.2]} 15. Rac1 {[%clk 0:02:18.8]} 15... g5 {[%clk
0:02:56.3]} 16. b4 {[%clk 0:02:02.8]} 16... Ng6 {[%clk 0:02:56.1]} 17. Rfe1
{[%clk 0:01:59.7]} 17... Nf4 {[%clk 0:02:56.4]} 18. Bf1 {[%clk 0:02:00.2]} 18...
Nh8 {[%clk 0:02:55.1]} 19. Ne4 {[%clk 0:01:46.7]} 19... Nhg6 {[%clk 0:02:55]}
20. c5 {[%clk 0:01:43.2]} 20... Nxh3+ {[%clk 0:02:54.4]} 21. Bxh3 {[%clk
0:01:41.9]} 21... Rxf3 {[%clk 0:02:54.9]} 22. Bg2 {[%clk 0:01:23.7]} 22... Nh4
{[%clk 0:02:55.1]} 23. cxd6 {[%clk 0:01:20.9]} 23... cxd6 {[%clk 0:02:53.7]} 24.
Qe2 {[%clk 0:01:11.1]} 24... Bxg4 {[%clk 0:02:49.6]} 25. Qb5 {[%clk 0:00:53.7]}
25... Nxg2 {[%clk 0:02:47.2]} 26. Kxg2 {[%clk 0:00:53.7]} 26... Qf8 {[%clk
0:02:46.5]} 27. Qxb7 {[%clk 0:00:37.3]} 27... Rh3 {[%clk 0:02:41.7]} 28. Ng3
{[%clk 0:00:23.3]} 28... Qf3+ {[%clk 0:02:37.8]} 29. Kg1 {[%clk 0:00:23.5]}
29... Rxg3+ {[%clk 0:02:34.2]} 30. fxg3 {[%clk 0:00:23.6]} 30... Qxg3+ {[%clk
0:02:35.1]} 31. Kf1 {[%clk 0:00:23.8]} 31... Rf8+ {[%clk 0:02:34.7]} 0-1

[Event "Late-Titled-Tuesday-Blitz-April-16-2024"]
[Site "Chess.com"]
[Date "2024.04.16"]
[Round "11"]
[White "DonkyDonkyDonkey"]
[Black "Korchmar_Vasiliy"]
[Result "1-0"]
[WhiteElo "2907"]
[BlackElo "2711"]
[TimeControl "180+1"]
[EndTime "16:03:31 PDT"]
[Termination "DonkyDonkyDonkey won by resignation"]

1. e4 {[%clk 0:02:59.3]} 1... c5 {[%clk 0:03:00.1]} 2. Nc3 {[%clk 0:02:59.3]}
2... d6 {[%clk 0:03:00.3]} 3. f4 {[%clk 0:02:59.8]} 3... Nc6 {[%clk 0:03:00.1]}
4. Nf3 {[%clk 0:03:00.7]} 4... e6 {[%clk 0:03:00.3]} 5. Bb5 {[%clk 0:02:59.5]}
5... Bd7 {[%clk 0:02:59.3]} 6. O-O {[%clk 0:02:59.8]} 6... Nf6 {[%clk
0:02:59.4]} 7. d3 {[%clk 0:02:59.8]} 7... Be7 {[%clk 0:02:59.6]} 8. Qe1 {[%clk
0:02:59.6]} 8... O-O {[%clk 0:02:59.9]} 9. Bxc6 {[%clk 0:02:57.3]} 9... Bxc6
{[%clk 0:02:59.5]} 10. Qg3 {[%clk 0:02:58.1]} 10... d5 {[%clk 0:02:45.3]} 11. e5
{[%clk 0:02:57.9]} 11... Nh5 {[%clk 0:02:40.2]} 12. Qh3 {[%clk 0:02:58]} 12...
g6 {[%clk 0:02:39.2]} 13. Ng5 {[%clk 0:02:51.4]} 13... Bxg5 {[%clk 0:02:20.5]}
14. fxg5 {[%clk 0:02:52.3]} 14... d4 {[%clk 0:02:16.9]} 15. Ne4 {[%clk
0:02:39.7]} 15... Bxe4 {[%clk 0:02:11.9]} 16. dxe4 {[%clk 0:02:40.6]} 16... Qc7
{[%clk 0:01:49.5]} 17. g4 {[%clk 0:02:39.5]} 17... Ng7 {[%clk 0:01:47.9]} 18.
Bf4 {[%clk 0:02:40.1]} 18... c4 {[%clk 0:01:47]} 19. Rf3 {[%clk 0:02:39.4]}
19... Rfd8 {[%clk 0:01:37.7]} 20. Qh6 {[%clk 0:02:36.1]} 20... d3 {[%clk
0:01:29]} 21. Rh3 {[%clk 0:02:04.8]} 21... dxc2 {[%clk 0:01:20.2]} 22. Qxh7+
{[%clk 0:01:38.6]} 22... Kf8 {[%clk 0:01:19.4]} 23. Qh8+ {[%clk 0:01:34]} 23...
Ke7 {[%clk 0:01:18.7]} 24. Qxg7 {[%clk 0:01:34.9]} 24... Rd1+ {[%clk 0:01:18.2]}
25. Kg2 {[%clk 0:01:35.2]} 25... Rxa1 {[%clk 0:01:15.2]} 26. Qf6+ {[%clk
0:01:35.3]} 26... Kd7 {[%clk 0:01:14.9]} 27. Qxf7+ {[%clk 0:01:35.7]} 27... Kc6
{[%clk 0:01:14.9]} 28. Qxe6+ {[%clk 0:01:36.4]} 28... Kb5 {[%clk 0:01:11.6]} 29.
Qd5+ {[%clk 0:01:27]} 29... Ka6 {[%clk 0:00:53.6]} 30. Ra3+ {[%clk 0:01:25.5]}
1-0

[Event "Late-Titled-Tuesday-Blitz-April-16-2024"]
[Site "Chess.com"]
[Date "2024.04.16"]
[Round "11"]
[White "Zhigalko_Sergei"]
[Black "Revan_2002"]
[Result "1-0"]
[WhiteElo "2919"]
[BlackElo "2751"]
[TimeControl "180+1"]
[EndTime "16:03:34 PDT"]
[Termination "Zhigalko_Sergei won by resignation"]

1. e4 {[%clk 0:03:00.9]} 1... e5 {[%clk 0:03:00]} 2. Nf3 {[%clk 0:03:00.8]} 2...
Nc6 {[%clk 0:03:00.3]} 3. Bc4 {[%clk 0:02:59.9]} 3... Bc5 {[%clk 0:02:59.5]} 4.
b4 {[%clk 0:02:58.4]} 4... Bxb4 {[%clk 0:02:58.8]} 5. c3 {[%clk 0:02:58.7]} 5...
Ba5 {[%clk 0:02:56.6]} 6. d4 {[%clk 0:02:58.8]} 6... exd4 {[%clk 0:02:51.7]} 7.
O-O {[%clk 0:02:58.8]} 7... Nge7 {[%clk 0:02:48.5]} 8. Ng5 {[%clk 0:02:58.7]}
8... Ne5 {[%clk 0:02:31.9]} 9. Nxf7 {[%clk 0:02:57.2]} 9... Nxf7 {[%clk
0:02:30.9]} 10. Bxf7+ {[%clk 0:02:58.1]} 10... Kxf7 {[%clk 0:02:31.5]} 11. Qh5+
{[%clk 0:02:58.5]} 11... g6 {[%clk 0:02:28.8]} 12. Qxa5 {[%clk 0:02:56.6]} 12...
d5 {[%clk 0:02:24.6]} 13. cxd4 {[%clk 0:02:35.2]} 13... dxe4 {[%clk 0:02:23.6]}
14. Nc3 {[%clk 0:02:35.2]} 14... c6 {[%clk 0:02:14.3]} 15. Qe5 {[%clk
0:02:26.5]} 15... Re8 {[%clk 0:02:09.9]} 16. Bg5 {[%clk 0:02:20]} 16... Qd7
{[%clk 0:02:01.2]} 17. Nxe4 {[%clk 0:02:03.5]} 17... Nf5 {[%clk 0:02:01]} 18.
Qf4 {[%clk 0:01:56.3]} 18... h6 {[%clk 0:01:11.1]} 19. Bxh6 {[%clk 0:01:47]}
19... Rxe4 {[%clk 0:01:10.8]} 20. Qxe4 {[%clk 0:01:42.9]} 20... Nxh6 {[%clk
0:01:11.4]} 21. Rfe1 {[%clk 0:01:43.3]} 21... Qc7 {[%clk 0:01:06.2]} 22. Qe8+
{[%clk 0:01:41.3]} 22... Kf6 {[%clk 0:01:01.7]} 23. Qh8+ {[%clk 0:01:31]} 23...
Kg5 {[%clk 0:00:45.7]} 24. h4+ {[%clk 0:01:16.5]} 1-0

[Event "Late-Titled-Tuesday-Blitz-April-16-2024"]
[Site "Chess.com"]
[Date "2024.04.16"]
[Round "11"]
[White "ContrVersia"]
[Black "jaskol95"]
[Result "1-0"]
[WhiteElo "2834"]
[BlackElo "2549"]
[TimeControl "180+1"]
[EndTime "16:03:43 PDT"]
[Termination "ContrVersia won by resignation"]

1. e4 {[%clk 0:03:00.9]} 1... e6 {[%clk 0:02:59.5]} 2. Nf3 {[%clk 0:02:58.2]}
2... d5 {[%clk 0:02:59]} 3. Nc3 {[%clk 0:02:58.5]} 3... Nf6 {[%clk 0:02:58.4]}
4. e5 {[%clk 0:02:56.1]} 4... Nfd7 {[%clk 0:02:58.8]} 5. Ne2 {[%clk 0:02:55.7]}
5... c5 {[%clk 0:02:57.9]} 6. c3 {[%clk 0:02:55.5]} 6... d4 {[%clk 0:02:46.8]}
7. cxd4 {[%clk 0:02:51.5]} 7... cxd4 {[%clk 0:02:47.5]} 8. Qa4 {[%clk
0:02:51.5]} 8... Nc6 {[%clk 0:02:47.6]} 9. Nexd4 {[%clk 0:02:50.3]} 9... Ndxe5
{[%clk 0:02:41.9]} 10. Bb5 {[%clk 0:02:37.9]} 10... Nxf3+ {[%clk 0:02:41.3]} 11.
gxf3 {[%clk 0:02:37.4]} 11... Bd7 {[%clk 0:02:38.7]} 12. Nxc6 {[%clk 0:02:36.9]}
12... bxc6 {[%clk 0:02:38.2]} 13. Bxc6 {[%clk 0:02:37.2]} 13... Rc8 {[%clk
0:02:38.8]} 14. Bxd7+ {[%clk 0:02:35.3]} 14... Qxd7 {[%clk 0:02:39.7]} 15. Qxd7+
{[%clk 0:02:34.8]} 15... Kxd7 {[%clk 0:02:40.6]} 16. b3 {[%clk 0:02:32.1]} 16...
Bb4 {[%clk 0:02:36.7]} 17. a3 {[%clk 0:02:24.9]} 17... Be7 {[%clk 0:02:35.6]}
18. Bb2 {[%clk 0:02:24.1]} 18... Rb8 {[%clk 0:02:33.3]} 19. Bxg7 {[%clk
0:01:42.6]} 19... Rhg8 {[%clk 0:02:31.8]} 20. Bc3 {[%clk 0:01:42.6]} 20... Rxb3
{[%clk 0:02:31.3]} 21. a4 {[%clk 0:01:43]} 21... Bb4 {[%clk 0:02:23.6]} 22. Bd4
{[%clk 0:01:36.1]} 22... a5 {[%clk 0:02:13]} 23. Ke2 {[%clk 0:01:34.2]} 23...
Rc8 {[%clk 0:01:54]} 24. Rhg1 {[%clk 0:01:09.1]} 24... Rc2 {[%clk 0:01:53.3]}
25. Be3 {[%clk 0:01:09.4]} 25... Rbb2 {[%clk 0:01:48.7]} 26. Rg7 {[%clk
0:01:07.5]} 26... Bxd2 {[%clk 0:01:45.3]} 27. Rd1 {[%clk 0:01:06.1]} 27... Ke7
{[%clk 0:01:39.1]} 28. Rxd2 {[%clk 0:01:05.6]} 28... Rxd2+ {[%clk 0:01:39.7]}
29. Bxd2 {[%clk 0:01:05.8]} 29... Ra2 {[%clk 0:01:40.6]} 30. Rg5 {[%clk
0:01:04.2]} 30... Rxa4 {[%clk 0:01:39.8]} 31. Rxa5 {[%clk 0:01:03]} 31... Rc4
{[%clk 0:01:39.7]} 32. Rh5 {[%clk 0:01:01.9]} 32... Kf6 {[%clk 0:01:38.3]} 33.
Rxh7 {[%clk 0:01:01.5]} 33... Kg6 {[%clk 0:01:38.9]} 34. Rh3 {[%clk 0:00:59]}
34... f5 {[%clk 0:01:35.8]} 35. f4 {[%clk 0:00:57]} 35... e5 {[%clk 0:01:33]}
36. fxe5 {[%clk 0:00:56]} 36... Re4+ {[%clk 0:01:33.2]} 37. Re3 {[%clk 0:00:56]}
37... Rh4 {[%clk 0:01:34]} 38. e6 {[%clk 0:00:56.1]} 38... Rh8 {[%clk
0:01:30.9]} 39. e7 {[%clk 0:00:56.2]} 39... Re8 {[%clk 0:01:31.6]} 40. h4 {[%clk
0:00:54.6]} 40... Kh5 {[%clk 0:01:31.5]} 41. Bb4 {[%clk 0:00:50.9]} 41... Kg6
{[%clk 0:01:27.7]} 42. Rd3 {[%clk 0:00:50]} 1-0

[Event "Late-Titled-Tuesday-Blitz-April-16-2024"]
[Site "Chess.com"]
[Date "2024.04.16"]
[Round "11"]
[White "micke12a"]
[Black "GAO"]
[Result "1-0"]
[WhiteElo "2448"]
[BlackElo "2315"]
[TimeControl "180+1"]
[EndTime "16:03:52 PDT"]
[Termination "micke12a won by resignation"]

1. e4 {[%clk 0:03:00.9]} 1... Na6 {[%clk 0:02:54.4]} 2. d4 {[%clk 0:03:00.6]}
2... c6 {[%clk 0:02:54.4]} 3. Nf3 {[%clk 0:03:00.5]} 3... d5 {[%clk 0:02:53.6]}
4. Nc3 {[%clk 0:03:01.2]} 4... Nc7 {[%clk 0:02:49.3]} 5. h3 {[%clk 0:03:01.1]}
5... dxe4 {[%clk 0:02:48.8]} 6. Nxe4 {[%clk 0:03:01.1]} 6... Nf6 {[%clk
0:02:49.5]} 7. Bd3 {[%clk 0:03:00.6]} 7... Nxe4 {[%clk 0:02:48.9]} 8. Bxe4
{[%clk 0:03:00.7]} 8... Nd5 {[%clk 0:02:49.8]} 9. c4 {[%clk 0:02:59.3]} 9... Nf6
{[%clk 0:02:49.9]} 10. Bc2 {[%clk 0:02:59.4]} 10... e6 {[%clk 0:02:50.2]} 11.
O-O {[%clk 0:02:59.5]} 11... Be7 {[%clk 0:02:49.6]} 12. Re1 {[%clk 0:03:00.2]}
12... O-O {[%clk 0:02:50]} 13. b3 {[%clk 0:03:00.6]} 13... c5 {[%clk 0:02:50.4]}
14. Bb2 {[%clk 0:03:00.7]} 14... cxd4 {[%clk 0:02:50.6]} 15. Nxd4 {[%clk
0:03:01.2]} 15... Bd7 {[%clk 0:02:47.9]} 16. Qf3 {[%clk 0:03:01.6]} 16... Qc7
{[%clk 0:02:43.8]} 17. Rad1 {[%clk 0:03:00.9]} 17... Rfd8 {[%clk 0:02:39.2]} 18.
g4 {[%clk 0:02:48]} 18... Bc6 {[%clk 0:02:37.4]} 19. Nxc6 {[%clk 0:02:45.1]}
19... Qxc6 {[%clk 0:02:37.4]} 20. Qxc6 {[%clk 0:02:44.5]} 20... bxc6 {[%clk
0:02:37.3]} 21. Kg2 {[%clk 0:02:40.2]} 21... a5 {[%clk 0:02:36]} 22. g5 {[%clk
0:02:37.9]} 22... Nh5 {[%clk 0:02:35.8]} 23. Kf3 {[%clk 0:02:30.1]} 23... a4
{[%clk 0:02:32.9]} 24. Kg4 {[%clk 0:02:28.4]} 24... g6 {[%clk 0:02:32.8]} 25.
Be4 {[%clk 0:02:28.7]} 25... axb3 {[%clk 0:02:23.4]} 26. axb3 {[%clk 0:02:27.7]}
26... Rab8 {[%clk 0:02:15.9]} 27. Rxd8+ {[%clk 0:02:20]} 27... Bxd8 {[%clk
0:02:14.2]} 28. Rd1 {[%clk 0:02:19.7]} 28... Be7 {[%clk 0:02:13.8]} 29. Be5
{[%clk 0:02:12.2]} 29... Rc8 {[%clk 0:01:51.6]} 30. Rd7 {[%clk 0:02:11.2]} 30...
Bf8 {[%clk 0:01:52.1]} 31. Bc3 {[%clk 0:01:52.1]} 31... Ng7 {[%clk 0:01:43.8]}
32. b4 {[%clk 0:01:49.7]} 32... Nf5 {[%clk 0:01:36.6]} 33. c5 {[%clk 0:01:46.9]}
33... h5+ {[%clk 0:01:34]} 34. Kf3 {[%clk 0:01:41.7]} 34... Be7 {[%clk
0:01:21.5]} 35. Bxf5 {[%clk 0:01:40]} 35... Bxg5 {[%clk 0:01:14.5]} 36. Be4
{[%clk 0:01:40]} 36... Kf8 {[%clk 0:01:10.3]} 37. Be5 {[%clk 0:01:39]} 37... Ke8
{[%clk 0:01:09.5]} 38. Ra7 {[%clk 0:01:39]} 38... Be7 {[%clk 0:01:08.7]} 39. Rc7
{[%clk 0:01:37]} 39... Rxc7 {[%clk 0:01:06.3]} 40. Bxc7 {[%clk 0:01:37]} 40...
Kd7 {[%clk 0:01:07.2]} 41. Bb6 {[%clk 0:01:31.2]} 41... f5 {[%clk 0:01:06.5]}
42. Bc2 {[%clk 0:01:30.2]} 42... e5 {[%clk 0:01:06.7]} 43. Bb3 {[%clk
0:01:29.5]} 43... e4+ {[%clk 0:01:06.2]} 44. Kf4 {[%clk 0:01:28.7]} 44... Bh4
{[%clk 0:01:04.7]} 45. Bf7 {[%clk 0:01:25.7]} 45... Bg5+ {[%clk 0:00:59.5]} 46.
Kxg5 {[%clk 0:01:22.6]} 46... Ke7 {[%clk 0:00:57.7]} 47. Bxg6 {[%clk 0:01:22.1]}
1-0

[Event "Late-Titled-Tuesday-Blitz-April-16-2024"]
[Site "Chess.com"]
[Date "2024.04.16"]
[Round "11"]
[White "Sanyura"]
[Black "AradNazari"]
[Result "1-0"]
[WhiteElo "2625"]
[BlackElo "2717"]
[TimeControl "180+1"]
[EndTime "16:03:55 PDT"]
[Termination "Sanyura won by resignation"]

1. e4 {[%clk 0:03:00.9]} 1... c5 {[%clk 0:02:58]} 2. Nf3 {[%clk 0:03:00.5]} 2...
d6 {[%clk 0:02:54.4]} 3. d4 {[%clk 0:03:00.2]} 3... cxd4 {[%clk 0:02:55.3]} 4.
Nxd4 {[%clk 0:03:01]} 4... Nf6 {[%clk 0:02:55.8]} 5. Nc3 {[%clk 0:03:01.3]} 5...
a6 {[%clk 0:02:56.4]} 6. g3 {[%clk 0:03:01.7]} 6... e5 {[%clk 0:02:56.3]} 7. Nb3
{[%clk 0:03:01.8]} 7... Be6 {[%clk 0:02:55.1]} 8. Bg2 {[%clk 0:03:01.9]} 8...
Be7 {[%clk 0:02:25.5]} 9. O-O {[%clk 0:03:02]} 9... Nc6 {[%clk 0:02:25.9]} 10.
Re1 {[%clk 0:02:59]} 10... O-O {[%clk 0:02:26.2]} 11. a4 {[%clk 0:02:58.7]}
11... Na5 {[%clk 0:02:24.3]} 12. Nd2 {[%clk 0:02:56.5]} 12... Rc8 {[%clk
0:02:20.8]} 13. Nf1 {[%clk 0:02:56.3]} 13... Bg4 {[%clk 0:02:10.6]} 14. Qd3
{[%clk 0:02:52.7]} 14... Nd7 {[%clk 0:02:07.9]} 15. Ne3 {[%clk 0:02:44.3]} 15...
Nc5 {[%clk 0:02:03.4]} 16. Qd2 {[%clk 0:02:44.3]} 16... Be6 {[%clk 0:01:51.9]}
17. b4 {[%clk 0:02:44.1]} 17... Bg5 {[%clk 0:01:49.5]} 18. bxa5 {[%clk
0:02:38.5]} 18... Qxa5 {[%clk 0:01:49.9]} 19. Ncd5 {[%clk 0:02:37.9]} 19... Qd8
{[%clk 0:01:43.7]} 20. Qb4 {[%clk 0:02:37.8]} 20... Nd7 {[%clk 0:01:37.2]} 21.
Qxd6 {[%clk 0:02:32.8]} 21... Qa5 {[%clk 0:01:30.7]} 22. Qb4 {[%clk 0:02:28.6]}
22... Qxb4 {[%clk 0:01:25.7]} 23. Nxb4 {[%clk 0:02:28.3]} 23... a5 {[%clk
0:01:22.5]} 24. Nbd5 {[%clk 0:02:17.7]} 24... Nc5 {[%clk 0:01:19.3]} 25. h4
{[%clk 0:02:12.9]} 25... Bd8 {[%clk 0:01:18.1]} 26. Bb2 {[%clk 0:02:07]} 26...
f6 {[%clk 0:01:17.6]} 27. Red1 {[%clk 0:02:04.9]} 27... Na6 {[%clk 0:01:17.4]}
28. Bf1 {[%clk 0:01:59.7]} 28... Nc5 {[%clk 0:01:17.5]} 29. f3 {[%clk 0:01:59]}
29... Bd7 {[%clk 0:01:16.4]} 30. Bb5 {[%clk 0:01:57.1]} 30... Be6 {[%clk
0:01:06.8]} 31. Rd2 {[%clk 0:01:53.6]} 31... f5 {[%clk 0:01:02.5]} 32. exf5
{[%clk 0:01:52.5]} 32... Bxf5 {[%clk 0:01:03.4]} 33. Nxf5 {[%clk 0:01:51.8]}
33... Rxf5 {[%clk 0:01:04.3]} 34. Kg2 {[%clk 0:01:49.5]} 34... e4 {[%clk
0:01:04.5]} 35. fxe4 {[%clk 0:01:34.3]} 35... Nxe4 {[%clk 0:01:04.6]} 36. Bd7
{[%clk 0:01:34.9]} 36... Nxd2 {[%clk 0:00:58.8]} 37. Bxf5 {[%clk 0:01:34.2]}
37... Rc5 {[%clk 0:00:56.1]} 38. Re1 {[%clk 0:01:20.9]} 38... Kf8 {[%clk
0:00:42.6]} 39. Ba3 {[%clk 0:01:19.8]} 1-0

[Event "Late-Titled-Tuesday-Blitz-April-16-2024"]
[Site "Chess.com"]
[Date "2024.04.16"]
[Round "11"]
[White "duone"]
[Black "kleber2007"]
[Result "1/2-1/2"]
[WhiteElo "2337"]
[BlackElo "2500"]
[TimeControl "180+1"]
[EndTime "16:03:55 PDT"]
[Termination "Game drawn by agreement"]

1. e4 {[%clk 0:03:00.9]} 1... c5 {[%clk 0:02:58.5]} 2. Nf3 {[%clk 0:03:00.8]}
2... d6 {[%clk 0:02:59]} 3. d4 {[%clk 0:03:00.7]} 3... cxd4 {[%clk 0:02:59.9]}
4. Nxd4 {[%clk 0:03:00.3]} 4... Nf6 {[%clk 0:03:00.6]} 5. Nc3 {[%clk 0:03:00.2]}
5... a6 {[%clk 0:03:00.8]} 6. h3 {[%clk 0:02:59.9]} 6... e6 {[%clk 0:03:00.5]}
7. g4 {[%clk 0:02:59.7]} 7... d5 {[%clk 0:03:00.9]} 8. Bg2 {[%clk 0:02:57.3]}
8... Bb4 {[%clk 0:02:51.4]} 9. exd5 {[%clk 0:02:52.9]} 9... Nxd5 {[%clk
0:02:50.3]} 10. Bd2 {[%clk 0:02:49]} 10... Nxc3 {[%clk 0:02:46.8]} 11. Bxc3
{[%clk 0:02:49.9]} 11... Bxc3+ {[%clk 0:02:46.2]} 12. bxc3 {[%clk 0:02:50]}
12... Qc7 {[%clk 0:02:46]} 13. Qd2 {[%clk 0:02:44.9]} 13... Nd7 {[%clk
0:02:43.1]} 14. O-O {[%clk 0:02:44.1]} 14... O-O {[%clk 0:02:37.7]} 15. Rfe1
{[%clk 0:02:42.3]} 15... Nb6 {[%clk 0:02:32.8]} 16. Rab1 {[%clk 0:02:40.3]}
16... Nc4 {[%clk 0:02:31.5]} 17. Qd3 {[%clk 0:02:39.3]} 17... e5 {[%clk
0:02:20.9]} 18. Nf5 {[%clk 0:02:30.5]} 18... Bxf5 {[%clk 0:02:20.5]} 19. Qxf5
{[%clk 0:02:30.5]} 19... Rab8 {[%clk 0:02:15.6]} 20. Bd5 {[%clk 0:02:29.6]}
20... b5 {[%clk 0:02:03.9]} 21. Bxc4 {[%clk 0:02:25]} 21... Qxc4 {[%clk
0:02:03.5]} 22. Qxe5 {[%clk 0:02:25]} 22... Qxa2 {[%clk 0:02:02.3]} 23. Ra1
{[%clk 0:02:07.7]} 23... Qxc2 {[%clk 0:02:01.4]} 24. Rxa6 {[%clk 0:02:07.8]}
24... g6 {[%clk 0:01:50.1]} 25. Rf6 {[%clk 0:02:02.6]} 25... Rbc8 {[%clk
0:01:43.8]} 26. Rf3 {[%clk 0:02:01.6]} 26... Qb3 {[%clk 0:01:23.5]} 27. Rfe3
{[%clk 0:01:53.1]} 27... Qc4 {[%clk 0:01:22.8]} 28. Kg2 {[%clk 0:01:49.1]} 28...
Rc5 {[%clk 0:01:22.2]} 29. Qf6 {[%clk 0:01:46.6]} 29... Rc6 {[%clk 0:01:16.9]}
30. Qg5 {[%clk 0:01:36.8]} 30... Rc5 {[%clk 0:01:06.2]} 31. Qf6 {[%clk
0:01:33.8]} 31... Qd5+ {[%clk 0:01:05.8]} 32. Kh2 {[%clk 0:01:31]} 32... Rc6
{[%clk 0:01:04.2]} 33. Qh4 {[%clk 0:01:28.7]} 33... Qd6+ {[%clk 0:00:57.3]} 34.
Kg2 {[%clk 0:01:28.5]} 34... Qd5+ {[%clk 0:00:54.3]} 35. Kh2 {[%clk 0:01:27.5]}
35... Qd6+ {[%clk 0:00:53.9]} 36. Kg2 {[%clk 0:01:22.9]} 36... Qf6 {[%clk
0:00:48.6]} 37. Qxf6 {[%clk 0:01:13.9]} 37... Rxf6 {[%clk 0:00:48.2]} 38. Re5
{[%clk 0:01:14.6]} 38... Rc6 {[%clk 0:00:47.7]} 39. Rxb5 {[%clk 0:01:14.6]}
39... Rxc3 {[%clk 0:00:47.4]} 40. Rbe5 {[%clk 0:01:14.3]} 40... Rc6 {[%clk
0:00:47.1]} 41. R1e3 {[%clk 0:01:14.2]} 41... Rf6 {[%clk 0:00:45.4]} 1/2-1/2

[Event "Late-Titled-Tuesday-Blitz-April-16-2024"]
[Site "Chess.com"]
[Date "2024.04.16"]
[Round "11"]
[White "Bkmzzzzz"]
[Black "Tugrik1969"]
[Result "1-0"]
[WhiteElo "2411"]
[BlackElo "2501"]
[TimeControl "180+1"]
[EndTime "16:04:04 PDT"]
[Termination "Bkmzzzzz won by resignation"]

1. e4 {[%clk 0:03:00.9]} 1... c5 {[%clk 0:02:59.6]} 2. Nf3 {[%clk 0:03:00.4]}
2... d6 {[%clk 0:03:00.1]} 3. d4 {[%clk 0:02:58.2]} 3... cxd4 {[%clk 0:03:01]}
4. Qxd4 {[%clk 0:02:58.6]} 4... Nc6 {[%clk 0:03:00.1]} 5. Bb5 {[%clk 0:02:59.1]}
5... Bd7 {[%clk 0:03:00.7]} 6. Qd3 {[%clk 0:02:59.7]} 6... g6 {[%clk 0:02:52.6]}
7. Nc3 {[%clk 0:02:59]} 7... Bg7 {[%clk 0:02:53.1]} 8. Bg5 {[%clk 0:02:58]} 8...
Nf6 {[%clk 0:02:53.3]} 9. O-O-O {[%clk 0:02:57.4]} 9... O-O {[%clk 0:02:50.1]}
10. e5 {[%clk 0:02:54.4]} 10... Bf5 {[%clk 0:02:40.5]} 11. Qe2 {[%clk
0:02:42.7]} 11... Nb4 {[%clk 0:02:00.2]} 12. exf6 {[%clk 0:02:36.9]} 12... exf6
{[%clk 0:02:01.1]} 13. Bf4 {[%clk 0:02:33.1]} 13... Bxc2 {[%clk 0:01:46.6]} 14.
Bxd6 {[%clk 0:02:09.8]} 14... Bxd1 {[%clk 0:01:45.7]} 15. Rxd1 {[%clk
0:02:10.7]} 15... Qa5 {[%clk 0:01:45.2]} 16. Bxf8 {[%clk 0:02:01.6]} 16... Rxf8
{[%clk 0:01:45.3]} 17. Kb1 {[%clk 0:02:01.5]} 17... f5 {[%clk 0:01:39.8]} 18.
Bc4 {[%clk 0:01:54]} 18... Qc5 {[%clk 0:01:30.2]} 19. Bb3 {[%clk 0:01:39.3]}
19... h6 {[%clk 0:01:06.9]} 20. Rd7 {[%clk 0:01:37.7]} 20... Bxc3 {[%clk
0:00:57.5]} 21. bxc3 {[%clk 0:01:35.1]} 21... Qxc3 {[%clk 0:00:58.4]} 22. Rxf7
{[%clk 0:01:13.2]} 22... Qd3+ {[%clk 0:00:53.4]} 23. Qxd3 {[%clk 0:01:12.1]}
23... Nxd3 {[%clk 0:00:54.3]} 24. Rd7+ {[%clk 0:01:07.4]} 1-0

[Event "Late-Titled-Tuesday-Blitz-April-16-2024"]
[Site "Chess.com"]
[Date "2024.04.16"]
[Round "11"]
[White "TigrVShlyape"]
[Black "Nimrod_Veinberg"]
[Result "1-0"]
[WhiteElo "2942"]
[BlackElo "2762"]
[TimeControl "180+1"]
[EndTime "16:04:06 PDT"]
[Termination "TigrVShlyape won by resignation"]

1. d4 {[%clk 0:03:00.9]} 1... d5 {[%clk 0:02:55.6]} 2. Bf4 {[%clk 0:03:00.2]}
2... Nf6 {[%clk 0:02:55.4]} 3. e3 {[%clk 0:03:00.2]} 3... c5 {[%clk 0:02:56.1]}
4. c3 {[%clk 0:03:00.1]} 4... Qb6 {[%clk 0:02:52.8]} 5. Qb3 {[%clk 0:02:59.5]}
5... Nc6 {[%clk 0:02:47.2]} 6. Nd2 {[%clk 0:02:59]} 6... e6 {[%clk 0:02:05.2]}
7. Ngf3 {[%clk 0:02:54.2]} 7... Qd8 {[%clk 0:01:59.6]} 8. a4 {[%clk 0:02:51.5]}
8... Be7 {[%clk 0:01:50.9]} 9. h3 {[%clk 0:02:45.9]} 9... O-O {[%clk 0:01:40.4]}
10. Be2 {[%clk 0:02:44.9]} 10... Bd6 {[%clk 0:01:27.6]} 11. Bxd6 {[%clk
0:02:42.5]} 11... Qxd6 {[%clk 0:01:27.2]} 12. Qa3 {[%clk 0:02:42]} 12... b6
{[%clk 0:01:21]} 13. a5 {[%clk 0:02:29.7]} 13... Bb7 {[%clk 0:01:18.3]} 14. O-O
{[%clk 0:02:24.7]} 14... Rad8 {[%clk 0:01:11.1]} 15. axb6 {[%clk 0:02:19.8]}
15... axb6 {[%clk 0:01:12]} 16. Qb3 {[%clk 0:02:09.4]} 16... Qc7 {[%clk
0:01:10.9]} 17. Bb5 {[%clk 0:02:05]} 17... Nd7 {[%clk 0:01:02.3]} 18. Rfd1
{[%clk 0:02:00.2]} 18... e5 {[%clk 0:00:56.1]} 19. Bxc6 {[%clk 0:01:54.8]} 19...
Bxc6 {[%clk 0:00:51.2]} 20. Nxe5 {[%clk 0:01:53.6]} 20... Nxe5 {[%clk
0:00:47.5]} 21. dxe5 {[%clk 0:01:54]} 21... Rfe8 {[%clk 0:00:26.3]} 22. f4
{[%clk 0:01:47.6]} 22... f6 {[%clk 0:00:20.8]} 23. Nf3 {[%clk 0:01:47.2]} 23...
fxe5 {[%clk 0:00:16.5]} 24. Nxe5 {[%clk 0:01:46.8]} 24... Rxe5 {[%clk
0:00:16.6]} 25. fxe5 {[%clk 0:01:46.8]} 25... Qxe5 {[%clk 0:00:17.5]} 26. Qxb6
{[%clk 0:01:38.7]} 26... Qxe3+ {[%clk 0:00:08.4]} 27. Kh1 {[%clk 0:01:38.7]}
27... Rc8 {[%clk 0:00:06.8]} 28. Re1 {[%clk 0:01:35.3]} 28... Qg3 {[%clk
0:00:07]} 29. Re6 {[%clk 0:01:26.7]} 29... Bd7 {[%clk 0:00:03.1]} 30. Qd6 {[%clk
0:01:26]} 1-0